[Event "ESP-ch Teams Honor 2024"]
[Site "Melilla"]
[Date "2024.10.13"]
[Round "2.9"]
[White "Ibarra Jerez, Jose Carlos"]
[Black "Vokhidov, Shamsiddin"]
[Result "1/2-1/2"]
[ECO "A28"]
[WhiteElo "2559"]
[BlackElo "2668"]
[Annotator "TA"]
[PlyCount "101"]
[EventDate "2024.10.11"]
[EventType "team-tourn"]
[EventCountry "ESP"]
[SourceTitle "playchess.com"]
[Source "ChessBase"]
[SourceQuality "1"]
[WhiteTeam "Costa Calida"]
[BlackTeam "Andreu"]
[TimeControl "5400+30"]

{[%evp 18,101,0,0,0,0,0,0,0,-7,-14,-17,0,0,-9,-134,-137,-145,-137,-131,-110,-152,-136,-124,-59,-60,-68,-87,-72,-91,-92,-87,-88,-89,-37,-60,-36,-53,-54,-58,0,-97,-91,-88,-81,-92,-87,-92,-62,-137,-191,-183,-193,-209,-199,-194,-148,-229,-205,-227,-208,-208,-191,-241,-236,-365,-365,-365,-365,-456,-399,-1114,-8,-252,-227,-252,-22,-22,-22,-22,-22,-22,-15,-15,-8,-8]} 1. c4 {[%emt 0:00:04]} e5 {[%emt 0:00:31]} 2. Nc3 {[%emt 0:00:31]} Nf6 {[%emt 0:00:07]} 3. Nf3 {[%emt 0:00:53]} Nc6 {[%emt 0:00:08]} 4. e3 {[%emt 0:00:49]} Bb4 {[%emt 0:00:15]} 5. Qc2 {[%emt 0:00:59]} Bxc3 {[%emt 0:00:08]} 6. Qxc3 {[%emt 0:00:41]} Qe7 {[%emt 0:00:06]} 7. a3 {[%emt 0:01:13]} d5 {[%emt 0:04:34]} 8. d4 {[%emt 0:01:56]} exd4 {[%emt 0:00:10]} 9. Nxd4 {[%emt 0:00:11]} Nxd4 {[%emt 0:00:02]} 10. Qxd4 {[%emt 0:00:14]} O-O {[%emt 0:00:05]} 11. c5 {[%emt 0:01:26]} a5 {[%emt 0:12:19]} 12. Bd2 {[%emt 0:21:10]} Ne4 {[%emt 0:06:13][%cal Ob7b6]} 13. Rc1 {[%emt 0:01:53]} Rd8 {[%emt 0:06:48][%cal Ob7b6]} 14. f3 {[%emt 0:13:16]} Ng5 {[%emt 0:07:41]} 15. b4 {[%emt 0:05:28]} axb4 {[%emt 0:00:57]} 16. axb4 {[%emt 0:00:35]} (16. Bxb4 $11 {keeps the balance.} Ne6 17. Qe5) 16... Ra2 $1 $17 {[%emt 0:02:48]} (16... Ne6 17. Qb2 $15) 17. Be2 {[%emt 0:07:02]} Bf5 $1 {[%emt 0:12:17]} ({Don't do} 17... Ne6 18. Qe5 $15) 18. h4 {[%emt 0:13:02] [#]} Ne4 {[%emt 0:12:19][%mdl 512]} 19. Bc3 {[%emt 0:02:47]} (19. fxe4 $2 {is the wrong capture.} dxe4 20. Qc3 Rdxd2 (20... Raxd2 $2 21. Qxd2 Rxd2 22. Kxd2 $19) 21. Qxd2 Rxd2 22. Kxd2 Be6 $19) 19... Nxc3 {[%emt 0:00:16]} 20. Rxc3 {[%emt 0:00:42]} Bd7 {[%emt 0:00:25]} ({Black should play} 20... Rda8 $1 $17 {Hoping for ...Rb2.} 21. Rc1 Qe8) 21. Rd3 $15 {[%emt 0:09:12][%cal Od3d2]} Rda8 $1 {[%emt 0:01:19] Threatens to win with ...Bb5.} 22. Kf2 {[%emt 0:01:17]} Bb5 {[%emt 0:03:31]} 23. Rd2 {[%emt 0:00:11]} Bxe2 {[%emt 0:00:09]} 24. Kxe2 {[%emt 0:00:42]} Rxd2+ {[%emt 0:03:36]} 25. Qxd2 $17 {[%emt 0:00:07][%mdl 4096] Endgame. KQR-KQR} Ra3 {[%emt 0:00:21]} ({Better is} 25... Qe5 $1 $17 {aiming for ...Qg3.} 26. Kf2 c6) 26. Kf2 {[%emt 0:01:12]} c6 {[%emt 0:00:24]} 27. Qd4 {[%emt 0:06:03]} Ra2+ {[%emt 0:00:18]} 28. Kg3 {[%emt 0:00:51]} Qe6 {[%emt 0:02:28]} (28... Rc2 $15 29. Qf4 h6) 29. Kh2 {[%emt 0:05:31]} (29. h5 $11) 29... Qg6 {[%emt 0:02:50][%csl Ga2][%cal Rg6g2]} 30. Rg1 {[%emt 0:00:07]} h5 {[%emt 0:01:43]} 31. Qe5 {[%emt 0:00:42]} Kh7 {[%emt 0:00:02]} 32. b5 {[%emt 0:01:32]} Ra4 $40 {[%emt 0:01:10][%cal Ra4h4][%mdl 128] Black is up to no good.} (32... cxb5 33. Qxd5 Rc2 34. Qe5 $15) 33. Kh3 {[%emt 0:01:33] [#]} (33. g4 $15) 33... Re4 $3 {[%emt 0:01:58][%mdl 512]} 34. Qg5 {[%emt 0:01:28]} Qxg5 {[%emt 0:01:53]} 35. hxg5 {[%emt 0:00:08]} Rxe3 $19 {[%emt 0:00:51] KR-KR} 36. Ra1 {[%emt 0:00:19]} Rc3 {[%emt 0:01:31]} 37. Ra7 {[%emt 0:02:19]} (37. b6 $17 {was the only chance.}) 37... Rxc5 {[%emt 0:00:05]} 38. b6 {[%emt 0:00:21]} Rb5 {[%emt 0:00:28]} 39. Rxb7 {[%emt 0:00:06]} Kg6 {[%emt 0:00:01]} 40. f4 {[%emt 0:00:40]} (40. Kh4 {is a better defense.}) 40... c5 {[%emt 0:04:59]} 41. Rd7 {[%emt 0:01:08]} (41. g4 $142 c4 42. Kh4 (42. gxh5+ $2 Kxh5 43. Rxf7 d4 $19) 42... hxg4 43. Kxg4 f5+ 44. Kf3) 41... Rxb6 {[%emt 0:01:02]} 42. Rxd5 {[%emt 0:00:05] [#]} Rc6 {[%emt 0:00:02]} 43. Kh4 {[%emt 0:00:42] [#]} f5 $1 {[%emt 0:00:37]} 44. gxf6 $2 {[%emt 0:00:20]} (44. Rd3) 44... gxf6 $2 {[%emt 0:00:01]} (44... Kxf6 $19 {And now ...c4 would win.} 45. Kxh5 c4) 45. f5+ $2 {[%emt 0:00:45]} (45. Rxh5 $11 Kf7 46. Kg4) 45... Kh6 {[%emt 0:00:07]} 46. Rd3 {[%emt 0:00:12]} Rb6 $2 {[%emt 0:01:26]} (46... c4 $19 47. Rc3 Rc8) 47. Rc3 $11 {[%emt 0:00:39] The position is equal.} Rb4+ {[%emt 0:00:04]} 48. Kh3 $1 {[%emt 0:00:16]} c4 {[%emt 0:00:04] ( -> ...Rb3)} 49. Kh4 {[%emt 0:00:13]} Rb2 {[%emt 0:01:13]} 50. g4 {[%emt 0:00:41]} hxg4 {[%emt 0:02:21][%cal Og4g3] ...g3! would now be deadly.} 51. Rxc4 {[%emt 0:00:08] Weighted Error Value: White=0.42/Black=0.28 (precise) .  Loses game:     	White=1     	---        Missed win:     	---       	Black=2      Mistake:       	White=7     	Black=3      Inaccurate:     	---       	Black=1      OK:         	White=14    	Black=16     Best:        	White=5     	Black=3      Strong:       	White=1     	Black=4} 1/2-1/2

[Event "ESP-ch Teams Honor 2024"]
[Site "Melilla"]
[Date "2024.10.13"]
[Round "2.10"]
[White "Arizmendi Martinez, Julen Luis"]
[Black "Muzychuk, Anna"]
[Result "1/2-1/2"]
[ECO "B10"]
[WhiteElo "2507"]
[BlackElo "2524"]
[Annotator "TA"]
[PlyCount "61"]
[EventDate "2024.10.11"]
[EventType "team-tourn"]
[EventCountry "ESP"]
[SourceTitle "playchess.com"]
[Source "ChessBase"]
[SourceQuality "1"]
[WhiteTeam "Andreu"]
[BlackTeam "Costa Calida"]
[TimeControl "5400+30"]

{[%evp 11,61,0,0,0,10,13,12,10,2,1,3,4,11,8,1,8,7,7,0,0,0,4,4,0,0,0,0,0,0,0,0,0,0,0,0,0,0,0,0,0,0,0,0,0,0,0,0,0,0,0,0,0]} 1. c4 {[%emt 0:00:05]} c6 {[%emt 0:00:20]} 2. e4 {[%emt 0:07:07]} d5 {[%emt 0:00:11]} 3. cxd5 {[%emt 0:00:37]} cxd5 {[%emt 0:00:09]} 4. exd5 {[%emt 0:00:09]} Nf6 {[%emt 0:00:55]} 5. Nc3 {[%emt 0:00:48]} Nxd5 {[%emt 0:01:23]} 6. Nf3 {[%emt 0:00:10]} Nc6 {[%emt 0:04:27] The position is equal.} 7. Bb5 {[%emt 0:01:36]} g6 {[%emt 0:05:19]} 8. Qa4 {[%emt 0:07:27]} Nb6 {[%emt 0:00:31]} 9. Bxc6+ {[%emt 0:06:47]} bxc6 {[%emt 0:01:01]} 10. Qxc6+ {[%emt 0:00:02]} Bd7 {[%emt 0:00:08]} 11. Qe4 {[%emt 0:00:16]} Bg7 {[%emt 0:13:59] Prevents Qe5} 12. d4 {[%emt 0:03:56]} Rc8 {[%emt 0:00:22]} 13. O-O {[%emt 0:11:41]} Bc6 {[%emt 0:00:31] This pair of bishops is nice.} 14. Qe2 {[%emt 0:00:42]} Bxf3 {[%emt 0:09:49]} 15. Qxf3 {[%emt 0:00:30]} Qxd4 {[%emt 0:00:34]} 16. Bg5 {[%emt 0:05:36]} h6 {[%emt 0:10:12]} 17. Rad1 {[%emt 0:11:01]} (17. Be3 {simplifies} Qb4 18. Bxb6 Bxc3 19. Bxa7 Qxb2 20. a4) 17... Qb4 {[%emt 0:07:51]} 18. Nd5 {[%emt 0:26:47]} Nxd5 {[%emt 0:00:22]} (18... Qxb2 $2 {too greedy.} 19. Bxe7 Nc4 20. Rfe1 $18) 19. Qxd5 {[%emt 0:00:09] [#] Threatening mate with Qd7+.} O-O $1 {[%emt 0:00:43]} ({Worse is} 19... hxg5 20. Qd7+ Kf8 21. Qxc8#) 20. a3 {[%emt 0:00:41]} Qxb2 {[%emt 0:00:54]} 21. Bxe7 {[%emt 0:00:12][%cal Od1b1] Black must now prevent Rb1!} Rfe8 {[%emt 0:00:07]} 22. Qd7 {[%emt 0:04:58]} a6 {[%emt 0:07:11]} 23. Rfe1 {[%emt 0:03:20]} Qb5 {[%emt 0:02:31]} 24. Qxb5 {[%emt 0:01:25]} axb5 {[%emt 0:00:01]} 25. Bb4 {[%emt 0:01:06]} Rxe1+ {[%emt 0:00:39]} 26. Bxe1 $11 {[%emt 0:01:05] KRB-KRB} Bb2 {[%emt 0:07:27]} 27. Rd3 {[%emt 0:00:48]} Rc1 {[%emt 0:00:47]} 28. Kf1 {[%emt 0:00:04]} Ra1 {[%emt 0:00:40]} 29. Rb3 {[%emt 0:00:09][%csl LRb2,LRb5]} Bxa3 {[%emt 0:01:00]} 30. Rxb5 {[%emt 0:00:08]} Bd6 {[%emt 0:00:42]} 31. g3 {[%emt 0:00:27] An even fight not without its subleties.   Weighted Error Value: White=0.00 (flawless) /Black=0.00 (flawless) .  OK:         	White=17    	Black=12     Best:        	White=1     	Black=1      Strong:       	---       	Black=1} 1/2-1/2

[Event "ESP-ch Teams Honor 2024"]
[Site "Melilla"]
[Date "2024.10.13"]
[Round "2.11"]
[White "Cuenca Jimenez, Jose Fernando"]
[Black "Macias Pino, Diego"]
[Result "1/2-1/2"]
[ECO "D37"]
[WhiteElo "2480"]
[BlackElo "2479"]
[Annotator "TA"]
[PlyCount "75"]
[EventDate "2024.10.11"]
[EventType "team-tourn"]
[EventCountry "ESP"]
[SourceTitle "playchess.com"]
[Source "ChessBase"]
[SourceQuality "1"]
[WhiteTeam "Costa Calida"]
[BlackTeam "Andreu"]
[TimeControl "5400+30"]

{[%evp 9,75,25,51,39,33,42,41,40,52,52,56,25,35,23,14,14,22,24,30,35,37,37,54,13,14,0,0,3,11,7,53,53,42,31,46,40,51,26,64,16,14,17,7,8,22,0,0,0,0,0,0,0,0,0,0,0,104,91,91,105,97,103,102,104,100,-17,-17,-23]} 1. d4 {[%emt 0:00:04]} Nf6 {[%emt 0:00:06]} 2. c4 {[%emt 0:00:05]} e6 {[%emt 0:00:04]} 3. Nf3 {[%emt 0:00:29]} d5 {[%emt 0:00:03]} 4. Nc3 {[%emt 0:00:13]} dxc4 {[%emt 0:00:06]} 5. e4 {[%emt 0:00:25][%cal Be2e4,Be4e5][%mdl 32]} b5 {[%emt 0:00:05]} 6. e5 {[%emt 0:00:34]} Nd5 {[%emt 0:00:04]} 7. Nxb5 {[%emt 0:00:04]} Nb6 {[%emt 0:00:02]} 8. Be2 {[%emt 0:00:24] White is slightly better.} Nc6 {[%emt 0:01:05]} 9. O-O {[%emt 0:00:16]} Be7 {[%emt 0:01:07]} 10. Be3 {[%emt 0:00:16]} O-O {[%emt 0:03:21]} 11. Qc1 {[%emt 0:01:27][%cal Of1d1]} Rb8 {[%emt 0:04:38]} 12. Nc3 {[%emt 0:06:49]} Bb7 {[%emt 0:04:15]} 13. Rd1 {[%emt 0:00:50][%cal Od4d5]} Nb4 {[%emt 0:02:11]} 14. Nd2 {[%emt 0:18:45]} Qd7 {[%emt 0:10:54]} 15. a3 {[%emt 0:05:44]} (15. Bxc4 $2 Nxc4 16. Nxc4 Qc6 $17) 15... Qc6 {[%emt 0:04:33][%csl Gb7][%cal Rc6g2] [#]} 16. Bf3 {[%emt 0:17:58]} (16. axb4 $2 Qxg2#) 16... N4d5 {[%emt 0:00:11]} 17. Qc2 {[%emt 0:19:44]} Nxe3 {[%emt 0:11:46]} 18. fxe3 {[%emt 0:00:15]} Nd5 {[%emt 0:00:15]} 19. Re1 {[%emt 0:09:55]} Bh4 {[%emt 0:11:44]} (19... Qa6 $11) 20. Re2 $14 {[%emt 0:10:17]} Ba6 {[%emt 0:04:30]} 21. Nde4 {[%emt 0:00:11]} Be7 {[%emt 0:02:15]} 22. Ree1 {[%emt 0:02:44]} Rb3 {[%emt 0:07:54]} 23. Nd2 {[%emt 0:00:34] Threatens to win with Nxd5. A dynamic duo of knights.} Rb7 {[%emt 0:02:00]} 24. Rac1 {[%emt 0:02:06]} (24. Be4 $14 {is more appropriate.}) 24... Rfb8 $11 {[%emt 0:01:40]} 25. Nd1 {[%emt 0:00:22][%cal Rd2c4]} Qd7 $1 {[%emt 0:10:46]} 26. Nxc4 {[%emt 0:00:05]} c5 {[%emt 0:00:01]} 27. dxc5 {[%emt 0:01:38]} Bxc5 {[%emt 0:00:33]} 28. b4 {[%emt 0:00:23]} Bxb4 {[%emt 0:01:52]} 29. axb4 {[%emt 0:00:27] Black must now prevent Bxd5.} Bxc4 {[%emt 0:00:34]} 30. Qxc4 {[%emt 0:00:20] And now Bxd5 would win.} Rc7 $1 {[%emt 0:00:01]} 31. Bxd5 {[%emt 0:00:53]} Rxc4 {[%emt 0:00:11]} 32. Bxc4 {[%emt 0:00:01]} Qd2 {[%emt 0:01:57] [#]} (32... Rxb4 $11 {keeps the balance.} 33. Nf2 g6) 33. Nc3 $1 $16 {[%emt 0:01:59]} ({Much weaker is} 33. Nf2 $6 Qxb4 34. Bd3 Qd2 $11) 33... h5 {[%emt 0:02:08]} 34. b5 {[%emt 0:00:19]} Rc8 {[%emt 0:00:23]} 35. Ne4 {[%emt 0:00:25]} Qb2 {[%emt 0:01:43]} 36. Rc3 {[%emt 0:00:04] Hoping for Rd1.} Rc5 {[%emt 0:01:14]} 37. Rb3 {[%emt 0:01:22]} (37. Rf1 $16) 37... Qc2 $1 $11 {[%emt 0:00:01]} 38. Nxc5 {[%emt 0:00:26] Weighted Error Value: White=0.12 (very precise) /Black=0.07 (flawless) .  Mistake:       	White=2     	Black=2      Inaccurate:     	White=2     	Black=1      OK:         	White=11    	Black=17     Best:        	White=4     	Black=4      Strong:       	White=1     	Black=3} 1/2-1/2

[Event "ESP-ch Teams Honor 2024"]
[Site "Melilla"]
[Date "2024.10.13"]
[Round "2.12"]
[White "Vega Gutierrez, Belinda"]
[Black "Camacho Collados, Marcos"]
[Result "0-1"]
[ECO "B54"]
[WhiteElo "2168"]
[BlackElo "2453"]
[Annotator "TA"]
[PlyCount "94"]
[EventDate "2024.10.11"]
[EventType "team-tourn"]
[EventCountry "ESP"]
[SourceTitle "playchess.com"]
[Source "ChessBase"]
[SourceQuality "1"]
[WhiteTeam "Andreu"]
[BlackTeam "Costa Calida"]
[TimeControl "5400+30"]

{[%evp 11,94,-10,-11,-7,0,2,11,-53,-54,-59,-15,-45,-54,-59,-40,-73,-43,-102,-42,-66,-46,-113,-106,-146,-88,-178,-128,-123,-126,-156,-51,-74,-74,-145,-134,-172,-116,-106,-101,-58,-101,-104,-67,-159,-171,-153,0,0,-62,-54,0,-53,0,-79,0,0,56,0,0,-32,29,0,0,-38,0,-46,0,-51,0,-449,-430,-515,-459,-665,-663,-910,-920,-1026,-1002,-993,-967,-5764,-1517,-1383,-1324]} 1. e4 {[%emt 0:00:04]} c5 {[%emt 0:00:09]} 2. Nf3 {[%emt 0:00:07]} d6 {[%emt 0:00:09]} 3. d4 {[%emt 0:00:12]} cxd4 {[%emt 0:00:06]} 4. Nxd4 {[%emt 0:00:06]} e5 {[%emt 0:00:09]} 5. Nb3 {[%emt 0:02:08]} Nf6 {[%emt 0:04:11]} 6. Nc3 {[%emt 0:00:26]} Be7 {[%emt 0:02:37]} 7. Be2 {[%emt 0:04:38] B56: Klassiek Siciliaans: Ongebruikelijke Varianten.} O-O {[%emt 0:00:10] OK} 8. O-O {[%emt 0:02:13] OK} a5 {[%emt 0:00:31]} 9. Bf3 $146 {[%emt 0:04:14] Fout (0.6)} (9. Be3 $11) ({Predecessor:} 9. Bg5 a4 10. Nd2 a3 11. b3 Qa5 12. Bxf6 Bxf6 13. Nd5 Bd8 14. Nc4 Qc5 15. b4 {1-0 Panchanathan,M (2570)-Maldonado,O (2194) Arlington DC op 1st 2013 (1)}) 9... a4 $15 {[%emt 0:01:33] Beste (Gemakkelijk)} 10. Nd2 {[%emt 0:00:34] OK} Be6 {[%emt 0:02:56] Remt Nc4. Onnauwkeurig} 11. Re1 {[%emt 0:09:14] Onnauwkeurig} Nc6 {[%emt 0:10:42] OK} 12. Nf1 {[%emt 0:25:05] OK} Nd4 {[%emt 0:01:37][%cal Oa4a3] OK} 13. Ne3 {[%emt 0:00:42] Onnauwkeurig} Qc7 {[%emt 0:26:07][%cal Oa4a3] Onnauwkeurig} 14. g3 {[%emt 0:03:01] Fout (0.6)} (14. a3 $15) 14... a3 {[%emt 0:01:53] Zwart heeft actievere stukken. Fout (0.6)} (14... Nxf3+ $17 15. Qxf3 h6) 15. Bg2 {[%emt 0:00:42] OK} Rfc8 {[%emt 0:00:41] OK} 16. Qd3 {[%emt 0:15:00] [#] Fout (0.7)} (16. Rb1 $1 $15) 16... b5 $1 {[%emt 0:15:02][%mdl 512]} 17. Rd1 {[%emt 0:11:40] Onnauwkeurig} (17. Nxb5 $2 {te hebberig.} Nxb5 18. Rd1 g6 $19) (17. Rb1 Bc4) 17... g6 {[%emt 0:16:21] Fout (0.6)} (17... b4 18. Ncd5 Bxd5 19. exd5 Nxc2 20. Nxc2 axb2 (20... Qxc2 21. bxa3 bxa3 22. Bxa3 $15) 21. Bxb2 Qxc2 22. Qxc2 Rxc2 23. Bxe5 Rcxa2 (23... dxe5 24. d6 $14) 24. Rxa2 Rxa2) 18. Rd2 {[%emt 0:05:04] [#] is een betere verdediging. Fout (0.9)} (18. Nxb5 $2 {verliest.} Nxb5 19. b3 (19. Qxb5 $2 {slaat de verkeerde figuur.} Rab8 $19) 19... Nc3 $19) (18. Ncd5 $17 Bxd5 19. exd5 Nxc2 20. Nxc2 axb2 (20... Qxc2 21. bxa3 Ng4 22. Qxc2 $15) 21. Bxb2 Qxc2 22. Qxc2 Rxc2 23. Bxe5) 18... Qa5 {[%emt 0:04:35] Fout (0.5)} (18... Bc4 $1 $19 {[%cal Rc4d3]} 19. Nxc4 bxc4) 19. Ncd5 {[%emt 0:05:43]} Bxd5 {[%emt 0:00:11] OK} 20. exd5 {[%emt 0:00:11]} b4 {[%emt 0:00:34] Fout (1.1)} (20... axb2 $17 21. Bxb2 Nd7) 21. bxa3 {[%emt 0:01:55] OK} bxa3 {[%emt 0:00:36]} 22. c4 {[%emt 0:00:49] Fout (0.7)} (22. Rb1) 22... Nd7 $17 {[%emt 0:01:28] OK} 23. Nc2 {[%emt 0:04:56] Beste} Nc5 {[%emt 0:00:21] Fout (0.6)} (23... Bg5 $19 24. Nxd4 Nc5 (24... exd4 25. Re2 $17)) 24. Qxa3 {[%emt 0:01:25] [#]} Qxd2 {[%emt 0:06:18][%mdl 512] OK} 25. Bxd2 {[%emt 0:00:19] Een sterk loperpaar.} Nxc2 {[%emt 0:00:52] OK} 26. Qb2 {[%emt 0:02:20] OK} Nxa1 {[%emt 0:00:07] OK} {Wit zou moeten proberen} 27. Bf1 {[%emt 0:00:24] Fout (0.9)} (27. Be3 $15) 27... Rcb8 {[%emt 0:02:29]} ({Neem niet} 27... Ne4 28. Bh6 $17) 28. Qxa1 {[%emt 0:00:30] [#] OK} Nb3 {[%emt 0:00:11] Fout (0.9)} (28... Bd8 $1 $17 {...Nb3 zou dodelijk zijn.} 29. Bh6 Nb3) 29. Qb2 $15 {[%emt 0:00:36] OK} Nxd2 {[%emt 0:01:35] OK} 30. Qxd2 {[%emt 0:00:01][%cal Oc4c5]} Rc8 {[%emt 0:00:28] Fout (0.5)} (30... Rb6 $15) {Wit zou moeten spelen} 31. Bd3 {[%emt 0:00:49] Fout (0.5)} (31. Qb4 $11) 31... Rc5 {[%emt 0:00:45] Fout (0.5)} (31... Kg7 $15) 32. Kg2 {[%emt 0:00:08] Fout (0.8)} (32. Qb2 $11) 32... Rb8 {[%emt 0:00:18] Fout (0.8)} (32... Ra3 $17) 33. a4 $11 {[%emt 0:00:42] OK} {Zwart zou moeten proberen} Bd8 {[%emt 0:00:02] Fout (0.6)} (33... Kg7 $11) 34. Qa2 {[%emt 0:00:16] Fout (0.9)} (34. h4 $14) 34... Ba5 $15 {[%emt 0:00:23] OK} 35. h4 $1 {[%emt 0:00:14][%cal Oh4h5] Sterk} {Zwart zou moeten spelen} h5 {[%emt 0:00:55] Fout (0.6)} (35... Bc3 $15) 36. Qc2 {[%emt 0:00:21][%cal Rd3g6] Sterke dreiging met Bxg6! Onnauwkeurig} Kg7 {[%emt 0:00:09] OK} 37. Qe2 {[%emt 0:00:16] Onnauwkeurig} Rb3 {[%emt 0:00:54] Onnauwkeurig} (37... Rcc8 $5) 38. Qe4 {[%emt 0:00:48] voelt sterker. Fout (0.5)} (38. Qc2 $11 Rc3 39. Qd1) 38... Bc3 {[%emt 0:00:48] was beter. Fout (0.5)} (38... Rb2 $15) {Beter is} 39. Be2 {[%emt 0:00:45] Fout (0.5)} (39. g4 $11) 39... Bd4 {[%emt 0:00:36] Hoopt vervolgens op ...f5. OK} 40. Qc2 {[%emt 0:01:02][%mdl 8192] White stands secure. Verliest partij (4.5)} (40. g4 $1 $11) 40... Rb2 $19 {[%emt 0:00:10] Beste. Zwart is duidelijk aan het winnen.} 41. Qd3 {[%emt 0:00:05]} Ra5 {[%emt 0:00:14] OK} 42. Qd1 {[%emt 0:00:34] Fout (2.1)} (42. Bd1 $142 Rxf2+ (42... Bxf2 $2 43. Qa3 $19) 43. Kh3) 42... Ra2 {[%emt 0:00:20] Beste} 43. f4 {[%emt 0:00:57] Onnauwkeurig} R5xa4 {[%emt 0:00:25]} 44. fxe5 {[%emt 0:00:15]} Bxe5 {[%emt 0:00:05]} 45. Kh3 {[%emt 0:00:55]} R4a3 {[%emt 0:00:15][%cal Oa2e2] ( -> ...Rxe2!)} 46. Bd3 {[%emt 0:00:32]} Ra1 {[%emt 0:00:30]} (46... Rc3 $142 47. c5 Raa3 (47... Rxc5 $2 48. Qb3 $19) (47... dxc5 $2 48. Qe1 $19) 48. cxd6 Rxd3 49. Qxd3 Rxd3) 47. Qe2 {[%emt 0:00:19]} Rg1 {[%emt 0:00:06] Blunder waarde: Wit=0.67/Zwart=0.37.  Verliest partij:   	Wit=1      	---        Fout:        	Wit=12     	Zwart=12     Onnauwkeurig:    	Wit=6      	Zwart=3      OK:         	Wit=9      	Zwart=14     Beste:        	Wit=1      	Zwart=3      Sterk:        	Wit=1      	---} 0-1